{"text_format":"3","workbook":"xlsx","n_sheets":1,"sheets":["Worksheet"],"read":"whole","date_system":"1900"}

{"sheet":"Worksheet","index":0,"n_rows":118,"n_cols":8,"rows_kept":118}
["№","Фамилия","Имя","Класс ","Балл","Макс. балл","Статус","Учитель"]
[1,"Барахтина","Елизавета",4,37,40,"победитель","Мифтахова Рената Фаритовна"]
[2,"Фасхутдинова","Камила",4,35,40,"призер","Мифтахова Рената Фаритовна"]
[3,"Асреева","Элиана",4,35,40,"призер","Мухамадеева Наталья Валерьевна"]
[4,"Даутов","Эмиль",4,34,40,"призер","Мухамадеева Наталья Валерьевна"]
[5,"Ванюшкин","Игорь",4,25,40,"участник","Мухамадеева Наталья Валерьевна"]
[6,"Хафизова","Эвелина",4,23,40,"участник","Мифтахова Рената Фаритовна"]
[7,"Закорина","Есения",4,23,40,"участник","Мухамадеева Наталья Валерьевна"]
[8,"Усмони","Сулаймон",4,20,40,"участник","Мифтахова Рената Фаритовна"]
[9,"Маммаева","Моника",4,20,40,"участник","Мифтахова Рената Фаритовна"]
[10,"Атландеров","Даниил",4,18,40,"участник","Мухамадеева Наталья Валерьевна"]
[11,"Туманова","Карина",4,18,40,"участник","Мухамадеева Наталья Валерьевна"]
[12,"Шигапова","Мадина",4,17,40,"участник","Мухамадеева Наталья Валерьевна"]
[13,"Абзалов","Камиль",4,17,40,"участник","Мухамадеева Наталья Валерьевна"]
[14,"Ямалтдинова","Карина",4,17,40,"участник","Мухамадеева Наталья Валерьевна"]
[15,"Абрамова","Виолетта",4,16,40,"участник","Мифтахова Рената Фаритовна"]
[16,"Соловьев","Елисей",4,16,40,"участник","Мифтахова Рената Фаритовна"]
[17,"Ивакин","Владислав",4,16,40,"участник","Мифтахова Рената Фаритовна"]
[18,"Тимофеева","Елизавета",4,15,40,"участник","Мифтахова Рената Фаритовна"]
[19,"Ахметов","Амир",4,14,40,"участник","Мифтахова Рената Фаритовна"]
[20,"Киселёва","Елизавета",4,13,40,"участник","Мухамадеева Наталья Валерьевна"]
[21,"Сайфуллина","Ясмина",4,13,40,"участник","Мухамадеева Наталья Валерьевна"]
[22,"Нуртдинов","Альмир",4,13,40,"участник","Мухамадеева Наталья Валерьевна"]
[23,"Насибуллина","Рамина",4,11,40,"участник","Мухамадеева Наталья Валерьевна"]
[24,"Нуруллина","Эмилия",5,43,44,"победитель","Мифтахова Рената Фаритовнв"]
[25,"Алтунина","Анна",5,40,44,"призер","Хасаншина Альсина Факилевна"]
[26,"Радикова","Камалия",5,39,44,"участник",{"$f":"$G$4","v":"призер"}]
[27,"Зяппарова","Самира",5,39,44,"призер","Колсанова Ольга Владимировна"]
[28,"Арапов","Ян",5,20,44,"участник",{"$f":"$G$5","v":"призер"}]
[29,"Насретдинов","Данияр",5,18,44,"участник",{"$f":"$G$7","v":"участник"}]
[30,"Зиатдинова","Адиля",5,18,44,"участник",{"$f":"$G$8","v":"участник"}]
[31,"Аскаров","Райян",5,15,44,"участник","Мухамадеева Наталья Валерьевна"]
[32,"Бадретдинов","Карим",5,15,44,"участник",{"$f":"$G$9","v":"участник"}]
[33,"Севастьянов","Егор",5,12,44,"участник",{"$f":"$G$10","v":"участник"}]
[34,"Мифтахов","Самир",5,11,44,"участник",{"$f":"$G$3","v":"призер"}]
[35,"Октябрев","Вильдан",5,11,44,"участник",{"$f":"$G$11","v":"участник"}]
[36,"Васильев","Семен",5,10,44,"участник",{"$f":"$G$13","v":"участник"}]
[37,"Абдрахманов","Каюм",5,9,44,"участник",{"$f":"$G$12","v":"участник"}]
[38,"Рахимзанов","Азамат",5,9,44,"участник",{"$f":"$G$16","v":"участник"}]
[39,"Сагдиев","Радмир",5,9,44,"участник",{"$f":"$G$17","v":"участник"}]
[40,"Иргалин","Айнур",5,8,44,"участник",{"$f":"$G$6","v":"участник"}]
[41,"Аменов","Рамиль",5,8,44,"участник",{"$f":"$G$13","v":"участник"}]
[42,"Абдуллина","Азалия",5,8,44,"участник",{"$f":"$G$17","v":"участник"}]
[43,"Фасхутдинов","Динар",5,8,44,"участник",{"$f":"$G$21","v":"участник"}]
[44,"Вадигуллина","Элина",5,7,44,"участник",{"$f":"$G$14","v":"участник"}]
[45,"Булгаков","Андрей",5,7,44,"участник",{"$f":"$G$22","v":"участник"}]
[46,"Вильданова","Радмила",5,7,44,"участник",{"$f":"$G$24","v":"участник"}]
[47,"Ганиева","Дарина",5,7,44,"участник",{"$f":"$G$25","v":"победитель"}]
[48,"Матиева","Малика",5,7,44,"участник",{"$f":"$G$26","v":"призер"}]
[49,"Минюхина","Милла",5,7,44,"участник",{"$f":"$G$27","v":"участник"}]
[50,"Сархандеев","Артур",6,41,44,"победитель","Мифтахова Рената Фаритовна"]
[51,"Мухаметзянов","Самир",6,39,44,"призер","Мифтахова Рената Фаритовна"]
[52,"Яковлев","Данила",6,37,44,"призер","Рыжикова Елена Николаевна"]
[53,"Ильина","София",6,37,44,"призер","Мифтахова Рената Фаритовна"]
[54,"Хаертдинова","Ильдана",6,16,44,"участник","Мифтахова Рената Фаритовна"]
[55,"Колпаков","Дмитрий",6,16,44,"участник","Рыжикова Елена Николаевна"]
[56,"Хабибуллина","Лейла",6,14,44,"участник","Рыжикова Елена Николаевна"]
[57,"Мифтахов","Рафаэль",6,13,44,"участник","Рыжикова Елена Николаевна"]
[58,"Зиннатшина","Регина",6,12,44,"участник","Мифтахова Рената Фаритовна"]
[59,"Исмуллин","Марк",6,12,44,"участник","Мифтахова Рената Фаритовна"]
[60,"Фролова","Валерия",6,7,44,"участник","Мифтахова Рената Фаритовна"]
[61,"Аглиева","Арина",6,6,44,"участник","Мифтахова Рената Фаритовна"]
[62,"Абдуллина","Самира",6,6,44,"участник","Мифтахова Рената Фаритовна"]
[63,"Саидова","Эвелина",6,5,44,"участник","Мифтахова Рената Фаритовна"]
[64,"Ильина","Дарья",6,5,44,"участник","Мифтахова Рената Фаритовна"]
[65,"Уразметов","Дамир",6,4,44,"участник","Мифтахова Рената Фаритовна"]
[66,"Хазеев","Тагир",7,63,68,"победитель","Колсанова Ольга Владимировна"]
[67,"Хабирова","Эвелина",7,61,68,"призер","Усачева Ольга Витальевна"]
[68,"Зайцева","Елизавета",7,59,68,"призер","Колсанова Ольга Владимировна"]
[69,"Рамазанова","Амина",7,34,68,"участник","Усачева Ольга Витальевна"]
[70,"Тахаутдинов","Роберт",7,34,68,"участник","Усачева Ольга Витальевна"]
[71,"Насырова","Самира",7,33,68,"участник","Усачева Ольга Витальевна"]
[72,"Камалова","Амина",7,33,68,"участник","Колсанова Ольга Владимировна"]
[73,"Анисахарова","Валерия",7,31,68,"участник","Колсанова Ольга Владимировна"]
[74,"Сергеев","Матвей",7,30,68,"участник","Колсанова Ольга Владимировна"]
[75,"Халитов","Хаким",7,19,68,"участник","Усачева Ольга Витальевна"]
[76,"Арсланова","Аиша",7,19,68,"участник","Колсанова Ольга Владимировна"]
[77,"Хасаншина","Аиша",7,17,68,"участник","Колсанова Ольга Владимировна"]
[78,"Апраксина","Вероника",7,14,68,"участник","Усачева Ольга Витальевна"]
[79,"Горшков","Дмитрий",7,14,68,"участник","Колсанова Ольга Владимировна"]
[80,"Губанова","Арина",7,13,68,"участник","Колсанова Ольга Владимировна"]
[81,"Сильдушкина","Вера",7,12,68,"участник","Усачева Ольга Витальевна"]
[82,"Фаррахова","Дарина",7,8,68,"участник","Колсанова Ольга Владимировна"]
[83,"Якубов","Дамир",8,65,68,"победитель","Хасаншина Альсина Факилевна"]
[84,"Елизарьева","Маргарита",8,60,68,"призер","Хасаншина Альсина Факилевна"]
[85,"Доможирова","Валерия",8,59,68,"призер","Хасаншина Альсина Факилевна"]
[86,"Ширазданова","Алина",8,59,68,"призер","Хасаншина Альсина Факилевна"]
[87,"Вадигуллин","Карим",8,33,68,"участник","Хасаншина Альсина Факилевна"]
[88,"Турунцев","Дмитрий",8,31,68,"участник","Хасаншина Альсина Факилевна"]
[89,"Сафонов","Тимофей",8,26,68,"участник","Салимова Алина Ильша"]
[90,"Сагдиева","Амина",8,23,68,"участник","Хасаншина Альсина Факилевна"]
[91,"Бекерева","Кира",8,19,68,"участник","Хасаншина Альсина Факилевна"]
[92,"Гарипова","Ясмина",8,17,68,"участник","Салимова Алина Ильша"]
[93,"Ахметова","Рилия",8,0,0,null,"Хасаншина Альсина Факилевна"]
[94,"Хайбрахманов","Арсен",8,0,0,null,"Хасаншина Альсина Факилевна"]
[95,"Аитова","Алия",9,96,99,"победитель","Усачева Ольга Витальевна"]
[96,"Усмаева","София",9,91,99,"призер","Рыжиккова Елена Николаевна"]
[97,"Апачаева","Камилла",9,91,99,"призер","Усачева Ольга Витальевна"]
[98,"Рафикова","Алина",9,89,99,"призер","Колсанова Ольга Владиировна"]
[99,"Мицук","Гордей",9,60,99,"участник","Усачева Ольга Витальевна"]
[100,"Галиева","Алина",9,57,99,"участник","Рыжиккова Елена Николаевна"]
[101,"Подгорнова","Эвелина",9,56,99,"участник","Рыжиккова Елена Николаевна"]
[102,"Ахмеров","Аскар",9,50,99,"участник","Колсанова Ольга Владиировна"]
[103,"Макаров","Степан",9,50,99,"участник","Усачева Ольга Витальевна"]
[104,"Степанов","Давид",10,85,99,"победитель","Колсанова Ольга Владимировна"]
[105,"Зимин","Герман",10,85,99,"победитель","Мухамадеева Наталья Валерьевна"]
[106,"Иванова","Софья",10,80,99,"призер","Мухамадеева Наталья Валерьевна"]
[107,"Ризванов","Амир",10,80,99,"призер","Мухамадеева Наталья Валерьевна"]
[108,"Мифтахов","Риналь",10,42,99,"участник","Мухамадеева Наталья Валерьевна"]
[109,"Нигматуллина","Сафира",10,0,0,null,"Колсанова Ольга Владимировна"]
[110,"Ахмерова","Амалия",11,85,99,"победитель","Мифтахова Рената Фаритовна"]
[111,"Миндубаев","Амир",11,84,99,"победитель","Мифтахова Рената Фаритовна"]
[112,"Асреева","Алиша",11,81,99,"призер","Мифтахова Рената Фаритовна"]
[113,"Юрикова","Софья",11,80,99,"призер","Мифтахова Рената Фаритовна"]
[114,"Миндубаев","Алан",11,80,99,"призер","Мифтахова Рената Фаритовна"]
[115,"Камалиев","Артур",11,52,99,"участник","Мифтахова Рената Фаритовна"]
[116,"Фархутдинов","Давид",11,32,99,"участник","Мифтахова Рената Фаритовна"]
[117,"Хабибрахманов","Альберт",11,18,99,"участник","Мифтахова Рената Фаритовна"]